[Event "Championnat d'Europe Rapide"]
[Date "2024.12.08"]
[White "Deac, Bogdan-Daniel"]
[Black "Stankovic, Milos"]
[WhiteElo "2696"]
[BlackElo "2462"]
[Round "9.21"]
[Result "1/2-1/2"]
[TimeControl "900+10"]

1. Nf3 {[%emt 00:00:03] [%clk 00:15:17]} d5 {[%emt 00:00:02] [%clk 00:15:18]} 2.
e3 {[%emt 00:00:11] [%clk 00:15:16]} Nf6 {[%emt 00:00:09] [%clk 00:15:18]} 3. c4
{[%emt 00:00:03] [%clk 00:15:24]} e6 {[%emt 00:00:04] [%clk 00:15:23]} 4. Nc3
{[%emt 00:00:02] [%clk 00:15:32]} c5 {[%emt 00:00:18] [%clk 00:15:16]} 5. cxd5
{[%emt 00:00:02] [%clk 00:15:40]} exd5 {[%emt 00:00:02] [%clk 00:15:24]} 6. Bb5+
{[%emt 00:00:19] [%clk 00:15:31]} Bd7 {[%emt 00:01:11] [%clk 00:14:23]} 7. Bxd7+
{[%emt 00:00:25] [%clk 00:15:16]} Nbxd7 {[%emt 00:01:22] [%clk 00:13:10]} 8. b3
{[%emt 00:00:11] [%clk 00:15:16]} Be7 {[%emt 00:00:10] [%clk 00:13:09]} 9. Bb2
{[%emt 00:00:13] [%clk 00:15:14]} O-O {[%emt 00:00:15] [%clk 00:13:04]} 10. d4
{[%emt 00:00:26] [%clk 00:14:58]} Re8 {[%emt 00:00:08] [%clk 00:13:06]} 11. O-O
{[%emt 00:00:17] [%clk 00:14:50]} a6 {[%emt 00:00:30] [%clk 00:12:46]} 12. dxc5
{[%emt 00:00:13] [%clk 00:14:48]} Nxc5 {[%emt 00:00:09] [%clk 00:12:47]} 13. Rc1
{[%emt 00:00:36] [%clk 00:14:22]} Rc8 {[%emt 00:00:11] [%clk 00:12:46]} 14. Nd4
{[%emt 00:00:03] [%clk 00:14:29]} Bf8 {[%emt 00:00:12] [%clk 00:12:44]} 15. Nde2
{[%emt 00:00:28] [%clk 00:14:10]} Ne6 {[%emt 00:00:34] [%clk 00:12:21]} 16. Qd3
{[%emt 00:01:04] [%clk 00:13:15]} Qa5 {[%emt 00:00:45] [%clk 00:11:46]} 17. a3
{[%emt 00:00:24] [%clk 00:13:01]} Nc5 {[%emt 00:01:59] [%clk 00:09:57]} 18. Qd1
{[%emt 00:00:34] [%clk 00:12:38]} Ne6 {[%emt 00:03:09] [%clk 00:06:58]} 19. b4
{[%emt 00:00:25] [%clk 00:12:23]} Qd8 {[%emt 00:00:04] [%clk 00:07:03]} 20. Qb3
{[%emt 00:00:03] [%clk 00:12:31]} a5 {[%emt 00:01:38] [%clk 00:05:35]} 21. Rfd1
{[%emt 00:02:28] [%clk 00:10:13]} axb4 {[%emt 00:00:13] [%clk 00:05:32]} 22.
axb4 {[%emt 00:00:10] [%clk 00:10:12]} Qd6 {[%emt 00:02:14] [%clk 00:03:29]} 23.
Nxd5 {[%emt 00:08:10] [%clk 00:02:12]} Nxd5 {[%emt 00:00:10] [%clk 00:03:29]}
24. Rxd5 {[%emt 00:00:06] [%clk 00:02:16]} Rxc1+ {[%emt 00:00:22] [%clk
00:03:16]} 25. Bxc1 {[%emt 00:00:52] [%clk 00:01:34]} Qxb4 {[%emt 00:00:03]
[%clk 00:03:24]} 26. Qxb4 {[%emt 00:00:01] [%clk 00:01:42]} Bxb4 {[%emt
00:00:02] [%clk 00:03:33]} 27. Rb5 {[%clk 00:01:51]} Rd8 {[%emt 00:00:39] [%clk
00:03:04]} 28. g3 {[%emt 00:00:10] [%clk 00:01:49]} Bd2 {[%emt 00:01:17] [%clk
00:01:58]} 29. Bb2 {[%emt 00:00:27] [%clk 00:01:31]} Rd7 {[%emt 00:00:07] [%clk
00:02:02]} 30. Kg2 {[%emt 00:00:17] [%clk 00:01:25]} h6 {[%emt 00:00:06] [%clk
00:02:07]} 31. h4 {[%emt 00:00:05] [%clk 00:01:29]} Rc7 {[%emt 00:00:12] [%clk
00:02:05]} 32. Kf3 {[%emt 00:00:43] [%clk 00:00:54]} Be1 {[%emt 00:00:18] [%clk
00:01:58]} 33. Nd4 {[%emt 00:00:39] [%clk 00:00:25]} Nxd4+ {[%emt 00:01:56]
[%clk 00:00:13]} 34. Bxd4 {[%emt 00:00:02] [%clk 00:00:33]} Bd2 {[%emt 00:00:07]
[%clk 00:00:16]} 35. h5 {[%emt 00:00:20] [%clk 00:00:22]} Bc1 {[%emt 00:00:05]
[%clk 00:00:22]} 36. Rb3 {[%emt 00:00:16] [%clk 00:00:16]} Bd2 {[%emt 00:00:08]
[%clk 00:00:24]} 37. Rb5 {[%emt 00:00:14] [%clk 00:00:13]} Bc1 {[%emt 00:00:01]
[%clk 00:00:32]} 38. Bb6 {[%emt 00:00:04] [%clk 00:00:18]} Rd7 {[%emt 00:00:08]
[%clk 00:00:35]} 39. Rb3 {[%emt 00:00:06] [%clk 00:00:22]} Rd5 {[%emt 00:00:13]
[%clk 00:00:31]} 40. g4 {[%emt 00:00:11] [%clk 00:00:21]} f5 {[%emt 00:00:04]
[%clk 00:00:37]} 41. Bd4 {[%emt 00:00:15] [%clk 00:00:17]} fxg4+ {[%emt
00:00:10] [%clk 00:00:37]} 42. Kxg4 {[%emt 00:00:05] [%clk 00:00:22]} b5 {[%clk
00:00:46]} 43. Rc3 {[%emt 00:00:18] [%clk 00:00:14]} Bd2 {[%emt 00:00:05] [%clk
00:00:51]} 44. Rc8+ {[%emt 00:00:03] [%clk 00:00:21]} Kh7 {[%emt 00:00:09] [%clk
00:00:52]} 45. f4 {[%emt 00:00:13] [%clk 00:00:18]} Rd7 {[%emt 00:00:02] [%clk
00:00:59]} 46. Rc2 {[%emt 00:00:13] [%clk 00:00:15]} Be1 {[%emt 00:00:06] [%clk
00:01:04]} 47. Rc1 {[%emt 00:00:12] [%clk 00:00:13]} Bd2 {[%emt 00:00:02] [%clk
00:01:11]} 48. Rc2 {[%emt 00:00:02] [%clk 00:00:22]} Be1 {[%emt 00:00:01] [%clk
00:01:20]} 49. Rc6 {[%emt 00:00:19] [%clk 00:00:13]} b4 {[%emt 00:00:06] [%clk
00:01:24]} 50. Rb6 {[%emt 00:00:01] [%clk 00:00:21]} Bc3 {[%emt 00:00:42] [%clk
00:00:53]} 51. Bxc3 {[%emt 00:00:02] [%clk 00:00:29]} bxc3 {[%emt 00:00:01]
[%clk 00:01:02]} 52. Rc6 {[%emt 00:00:02] [%clk 00:00:38]} Rd3 {[%clk 00:01:10]}
53. e4 {[%emt 00:00:02] [%clk 00:00:45]} Kg8 {[%emt 00:00:09] [%clk 00:01:11]}
54. Kf5 {[%emt 00:00:06] [%clk 00:00:50]} Kf7 {[%emt 00:00:08] [%clk 00:01:13]}
55. Rc7+ {[%emt 00:00:11] [%clk 00:00:48]} Kf8 {[%emt 00:00:14] [%clk 00:01:09]}
56. e5 {[%emt 00:00:41] [%clk 00:00:17]} Rf3 {[%emt 00:00:32] [%clk 00:00:47]}
57. Ke6 {[%emt 00:00:10] [%clk 00:00:17]} Kg8 {[%emt 00:00:03] [%clk 00:00:55]}
58. f5 {[%emt 00:00:09] [%clk 00:00:18]} Re3 {[%clk 00:01:04]} 59. Rc5 {[%emt
00:00:08] [%clk 00:00:19]} Rf3 {[%emt 00:00:10] [%clk 00:01:05]} 60. Rc7 {[%emt
00:00:16] [%clk 00:00:13]} Re3 {[%emt 00:00:02] [%clk 00:01:14]} 61. Kd6 {[%emt
00:00:08] [%clk 00:00:14]} Rd3+ {[%emt 00:00:43] [%clk 00:00:41]} 62. Ke7 {[%emt
00:00:04] [%clk 00:00:19]} Rd5 {[%emt 00:00:20] [%clk 00:00:32]} 63. Rc8+ {[%emt
00:00:16] [%clk 00:00:13]} Kh7 {[%clk 00:00:41]} 64. e6 {[%emt 00:00:09] [%clk
00:00:15]} Rxf5 {[%emt 00:00:03] [%clk 00:00:48]} 65. Rxc3 {[%emt 00:00:02]
[%clk 00:00:23]} Rxh5 {[%emt 00:00:07] [%clk 00:00:50]} 66. Kd6 {[%emt 00:00:18]
[%clk 00:00:15]} Rh1 {[%emt 00:00:06] [%clk 00:00:53]} 67. Rc5 {[%emt 00:00:10]
[%clk 00:00:16]} Kg6 {[%emt 00:00:22] [%clk 00:00:40]} 68. Re5 {[%emt 00:00:15]
[%clk 00:00:12]} Rd1+ {[%emt 00:00:02] [%clk 00:00:48]} 69. Ke7 {[%clk
00:00:21]} h5 {[%emt 00:00:08] [%clk 00:00:50]} 70. Re2 {[%emt 00:00:07] [%clk
00:00:24]} h4 {[%emt 00:00:08] [%clk 00:00:52]} 71. Rg2+ {[%emt 00:00:04] [%clk
00:00:29]} Kh5 {[%emt 00:00:06] [%clk 00:00:57]} 72. Rxg7 {[%emt 00:00:02] [%clk
00:00:37]} h3 {[%emt 00:00:18] [%clk 00:00:49]} 73. Kf6 {[%emt 00:00:07] [%clk
00:00:38]} Rf1+ {[%emt 00:00:03] [%clk 00:00:57]} 74. Ke5 {[%emt 00:00:03] [%clk
00:00:46]} Re1+ {[%emt 00:00:24] [%clk 00:00:42]} 75. Kd5 {[%emt 00:00:05] [%clk
00:00:51]} Kh4 {[%emt 00:00:22] [%clk 00:00:31]} 76. Kd6 {[%emt 00:00:01] [%clk
00:00:59]} h2 {[%emt 00:00:05] [%clk 00:00:36]} 77. Rh7+ {[%emt 00:00:02] [%clk
00:01:08]} Kg3 {[%clk 00:00:45]} 78. e7 {[%emt 00:00:02] [%clk 00:01:16]} Rxe7
{[%emt 00:00:15] [%clk 00:00:39]} 79. Kxe7 {[%emt 00:00:05] [%clk 00:01:21]} Kg2
{[%clk 00:00:48]} 80. Ke6 {[%emt 00:00:04]} 1/2-1/2

[Site "Europe Echecs"]

[Event "Championnat d'Europe Rapide"]
[Date "2024.12.08"]
[White "Motylev, Alexander"]
[Black "Costachi, Mihnea"]
[WhiteElo "2596"]
[BlackElo "2464"]
[Round "9.22"]
[Result "1-0"]
[TimeControl "900+10"]

1. e4 {[%clk 00:15:18]} e5 {[%emt 00:00:03] [%clk 00:15:18]} 2. Nf3 {[%emt
00:00:01] [%clk 00:15:26]} Nc6 {[%emt 00:00:19] [%clk 00:15:10]} 3. d4 {[%emt
00:00:02] [%clk 00:15:35]} exd4 {[%emt 00:00:02] [%clk 00:15:18]} 4. Nxd4 {[%emt
00:00:01] [%clk 00:15:43]} Nf6 {[%emt 00:00:03] [%clk 00:15:25]} 5. Nxc6 {[%emt
00:00:01] [%clk 00:15:51]} bxc6 {[%emt 00:00:03] [%clk 00:15:33]} 6. e5 {[%emt
00:00:01] [%clk 00:16:00]} Qe7 {[%emt 00:00:05] [%clk 00:15:38]} 7. Qe2 {[%emt
00:00:01] [%clk 00:16:08]} Nd5 {[%emt 00:00:02] [%clk 00:15:47]} 8. Nd2 {[%clk
00:16:17]} a5 {[%emt 00:03:53] [%clk 00:12:05]} 9. g3 {[%emt 00:00:02] [%clk
00:16:24]} Ba6 {[%emt 00:00:03] [%clk 00:12:12]} 10. Qe4 {[%emt 00:00:24] [%clk
00:16:10]} Bxf1 {[%emt 00:00:19] [%clk 00:12:04]} 11. Kxf1 {[%emt 00:00:02]
[%clk 00:16:18]} g6 {[%emt 00:00:26] [%clk 00:11:48]} 12. c4 {[%emt 00:00:18]
[%clk 00:16:09]} Nb4 {[%emt 00:00:37] [%clk 00:11:22]} 13. Kg2 {[%emt 00:00:36]
[%clk 00:15:42]} Bg7 {[%emt 00:00:03] [%clk 00:11:30]} 14. Re1 {[%emt 00:00:12]
[%clk 00:15:39]} O-O {[%emt 00:00:04] [%clk 00:11:35]} 15. Nf3 {[%emt 00:00:32]
[%clk 00:15:18]} f6 {[%emt 00:01:02] [%clk 00:10:43]} 16. a3 {[%emt 00:02:57]
[%clk 00:12:32]} Na6 {[%emt 00:00:32] [%clk 00:10:20]} 17. Qh4 {[%emt 00:01:38]
[%clk 00:11:04]} Rae8 {[%emt 00:01:16] [%clk 00:09:15]} 18. exf6 {[%emt
00:04:04] [%clk 00:07:10]} Qxf6 {[%emt 00:00:10] [%clk 00:09:15]} 19. Qxf6
{[%emt 00:00:11] [%clk 00:07:09]} Bxf6 {[%emt 00:00:02] [%clk 00:09:22]} 20. Rd1
{[%emt 00:01:31] [%clk 00:05:48]} Nc5 {[%emt 00:03:51] [%clk 00:05:41]} 21. Be3
{[%emt 00:00:43] [%clk 00:05:15]} Nb3 {[%emt 00:00:08] [%clk 00:05:43]} 22. Rab1
{[%emt 00:00:08] [%clk 00:05:17]} d6 {[%emt 00:00:20] [%clk 00:05:34]} 23. Nd2
{[%emt 00:01:56] [%clk 00:03:31]} Nd4 {[%emt 00:01:13] [%clk 00:04:30]} 24. Bxd4
{[%emt 00:01:03] [%clk 00:02:39]} Bxd4 {[%emt 00:00:01] [%clk 00:04:39]} 25. Nf3
{[%emt 00:00:07] [%clk 00:02:41]} Ba7 {[%emt 00:00:42] [%clk 00:04:08]} 26. Re1
{[%emt 00:00:19] [%clk 00:02:32]} a4 {[%emt 00:00:35] [%clk 00:03:43]} 27. Rxe8
{[%emt 00:00:59] [%clk 00:01:42]} Rxe8 {[%emt 00:00:01] [%clk 00:03:52]} 28. Re1
{[%emt 00:00:02] [%clk 00:01:49]} Rb8 {[%emt 00:00:24] [%clk 00:03:39]} 29. Re2
{[%emt 00:00:08] [%clk 00:01:52]} h6 {[%emt 00:00:01] [%clk 00:03:47]} 30. h4
{[%emt 00:00:10] [%clk 00:01:52]} Kf7 {[%emt 00:00:12] [%clk 00:03:45]} 31. g4
{[%emt 00:00:53] [%clk 00:01:10]} Rb3 {[%emt 00:00:21] [%clk 00:03:33]} 32. Rd2
{[%emt 00:00:11] [%clk 00:01:09]} Kf6 {[%emt 00:01:14] [%clk 00:02:30]} 33. Kg3
{[%emt 00:00:28] [%clk 00:00:50]} Bb6 {[%emt 00:00:40] [%clk 00:02:00]} 34. Kf4
{[%emt 00:00:17] [%clk 00:00:42]} d5 {[%emt 00:00:38] [%clk 00:01:34]} 35. g5+
{[%emt 00:00:12] [%clk 00:00:40]} hxg5+ {[%emt 00:00:02] [%clk 00:01:42]} 36.
hxg5+ {[%emt 00:00:01] [%clk 00:00:49]} Kg7 {[%emt 00:00:49] [%clk 00:01:02]}
37. Ne5 {[%emt 00:00:15] [%clk 00:00:44]} Bc5 {[%emt 00:00:25] [%clk 00:00:48]}
38. Nxc6 {[%emt 00:00:22] [%clk 00:00:31]} Bd6+ {[%emt 00:00:21] [%clk
00:00:38]} 39. Kg4 {[%clk 00:00:40]} dxc4 {[%emt 00:00:02] [%clk 00:00:46]} 40.
Na5 {[%emt 00:00:10] [%clk 00:00:40]} Rb5 {[%emt 00:00:31] [%clk 00:00:25]} 41.
Nxc4 {[%emt 00:00:09] [%clk 00:00:41]} Rb3 {[%emt 00:00:23] [%clk 00:00:12]} 42.
f4 {[%emt 00:00:16] [%clk 00:00:34]} Kf7 {[%emt 00:00:02] [%clk 00:00:20]} 43.
Nxd6+ {[%emt 00:00:11] [%clk 00:00:33]} cxd6 {[%clk 00:00:30]} 44. Rxd6 {[%emt
00:00:01] [%clk 00:00:41]} Rxb2 {[%emt 00:00:02] [%clk 00:00:39]} 45. Rf6+
{[%emt 00:00:11] [%clk 00:00:40]} Kg7 {[%emt 00:00:04] [%clk 00:00:44]} 46. Ra6
{[%emt 00:00:02] [%clk 00:00:48]} Rb3 {[%emt 00:00:12] [%clk 00:00:42]} 47. Rxa4
{[%emt 00:00:02] [%clk 00:00:56]} Rc3 {[%emt 00:00:45]} 48. Ra7+ {[%clk
00:00:29]} Kg8 {[%emt 00:00:06] [%clk 00:00:48]} 49. a4 {[%emt 00:00:03] [%clk
00:00:37]} Ra3 {[%emt 00:00:01] [%clk 00:00:57]} 50. f5 {[%emt 00:00:12] [%clk
00:00:34]} gxf5+ {[%emt 00:00:09] [%clk 00:00:58]} 51. Kxf5 {[%emt 00:00:04]
[%clk 00:00:40]} Rc3 {[%emt 00:00:06] [%clk 00:01:02]} 52. a5 {[%emt 00:00:16]
[%clk 00:00:35]} Rc5+ {[%emt 00:00:07] [%clk 00:01:05]} 53. Kg6 {[%emt 00:00:04]
[%clk 00:00:41]} Rc6+ {[%emt 00:00:01] [%clk 00:01:14]} 54. Kh5 {[%clk
00:00:49]} Rd6 {[%emt 00:00:15] [%clk 00:01:09]} 55. a6 {[%emt 00:00:04] [%clk
00:00:55]} Rc6 {[%emt 00:00:25] [%clk 00:00:55]} 56. g6 {[%emt 00:00:44]} Rc1
{[%clk 00:00:50]} 57. Rb7 {[%emt 00:00:06] [%clk 00:00:40]} Rh1+ {[%emt
00:00:27] [%clk 00:00:33]} 58. Kg5 {[%emt 00:00:02] [%clk 00:00:47]} Ra1 {[%emt
00:00:02] [%clk 00:00:41]} 59. a7 {[%emt 00:00:20] [%clk 00:00:38]} Ra2 {[%emt
00:00:05] [%clk 00:00:46]} 60. Kf5 {[%emt 00:00:06] [%clk 00:00:41]} Rf2+ {[%emt
00:00:12] [%clk 00:00:44]} 61. Ke4 {[%emt 00:00:09] [%clk 00:00:42]} 1-0

[Site "Europe Echecs"]

[Event "Championnat d'Europe Rapide"]
[Date "2024.12.08"]
[White "Ragger, Markus"]
[Black "Savanovic, Aleksandar"]
[WhiteElo "2577"]
[BlackElo "2354"]
[Round "9.23"]
[Result "1-0"]
[TimeControl "900+10"]

1. d4 {[%clk 00:15:18]} Nf6 {[%emt 00:00:03] [%clk 00:15:18]} 2. c4 {[%emt
00:00:02] [%clk 00:15:27]} e6 {[%emt 00:00:01] [%clk 00:15:26]} 3. Nf3 {[%emt
00:00:02] [%clk 00:15:35]} d5 {[%emt 00:00:03] [%clk 00:15:33]} 4. g3 {[%emt
00:00:01] [%clk 00:15:43]} Be7 {[%emt 00:00:02] [%clk 00:15:41]} 5. Bg2 {[%emt
00:00:02] [%clk 00:15:52]} O-O {[%emt 00:00:03] [%clk 00:15:48]} 6. O-O {[%emt
00:00:02] [%clk 00:15:59]} dxc4 {[%emt 00:00:03] [%clk 00:15:56]} 7. Qc2 {[%emt
00:00:01] [%clk 00:16:08]} a6 {[%emt 00:00:02] [%clk 00:16:04]} 8. a4 {[%emt
00:00:01] [%clk 00:16:17]} Bd7 {[%emt 00:00:02] [%clk 00:16:12]} 9. Qxc4 {[%emt
00:00:02] [%clk 00:16:25]} Bc6 {[%emt 00:00:02] [%clk 00:16:20]} 10. Bg5 {[%emt
00:00:01] [%clk 00:16:33]} Bd5 {[%emt 00:00:17] [%clk 00:16:13]} 11. Qc2 {[%emt
00:00:12] [%clk 00:16:32]} Be4 {[%emt 00:00:01] [%clk 00:16:22]} 12. Qd1 {[%emt
00:00:06] [%clk 00:16:36]} c5 {[%emt 00:00:05] [%clk 00:16:27]} 13. dxc5 {[%emt
00:00:04] [%clk 00:16:42]} Bxc5 {[%emt 00:00:25] [%clk 00:16:11]} 14. Nbd2
{[%emt 00:00:09] [%clk 00:16:43]} Bc6 {[%emt 00:00:03] [%clk 00:16:18]} 15. Ne5
{[%emt 00:00:11] [%clk 00:16:43]} Bxg2 {[%emt 00:00:15] [%clk 00:16:13]} 16.
Kxg2 {[%emt 00:00:01] [%clk 00:16:51]} Bd4 {[%emt 00:02:58] [%clk 00:13:26]} 17.
Nd3 {[%emt 00:00:56] [%clk 00:16:05]} h6 {[%emt 00:00:07] [%clk 00:13:28]} 18.
Bxf6 {[%emt 00:00:13] [%clk 00:16:03]} Bxf6 {[%emt 00:00:02] [%clk 00:13:36]}
19. Qb3 {[%emt 00:00:33] [%clk 00:15:39]} Nc6 {[%emt 00:00:52] [%clk 00:12:54]}
20. Rfd1 {[%emt 00:01:29] [%clk 00:14:20]} Na5 {[%emt 00:01:13] [%clk 00:11:51]}
21. Qa2 {[%emt 00:00:29] [%clk 00:14:01]} Qb6 {[%emt 00:00:32] [%clk 00:11:30]}
22. Rac1 {[%emt 00:00:29] [%clk 00:13:41]} Be7 {[%emt 00:00:26] [%clk 00:11:15]}
23. b4 {[%emt 00:00:42] [%clk 00:13:09]} Nc6 {[%emt 00:00:20] [%clk 00:11:04]}
24. Nc4 {[%emt 00:00:27] [%clk 00:12:52]} Qa7 {[%emt 00:01:11] [%clk 00:10:04]}
25. Qb2 {[%emt 00:01:31] [%clk 00:11:31]} Rfd8 {[%emt 00:01:00] [%clk 00:09:13]}
26. a5 {[%emt 00:00:26] [%clk 00:11:16]} Qd4 {[%emt 00:00:38] [%clk 00:08:44]}
27. Qxd4 {[%emt 00:02:23] [%clk 00:09:04]} Rxd4 {[%emt 00:00:03] [%clk
00:08:51]} 28. e3 {[%emt 00:00:01] [%clk 00:09:12]} Rdd8 {[%emt 00:00:01] [%clk
00:09:00]} 29. Nc5 {[%emt 00:00:13] [%clk 00:09:09]} Rxd1 {[%emt 00:01:00] [%clk
00:08:11]} 30. Rxd1 {[%emt 00:00:01] [%clk 00:09:18]} Nxb4 {[%emt 00:00:02]
[%clk 00:08:19]} 31. Nxb7 {[%emt 00:00:17] [%clk 00:09:10]} Rc8 {[%emt 00:00:33]
[%clk 00:07:57]} 32. Nb6 {[%emt 00:01:30] [%clk 00:07:50]} Rc2 {[%emt 00:00:02]
[%clk 00:08:04]} 33. Nd6 {[%emt 00:00:47] [%clk 00:07:14]} Bxd6 {[%emt 00:00:40]
[%clk 00:07:34]} 34. Rxd6 {[%clk 00:07:23]} Rc5 {[%emt 00:00:50] [%clk
00:06:53]} 35. Rd8+ {[%emt 00:00:09] [%clk 00:07:24]} Kh7 {[%clk 00:07:02]} 36.
Nd7 {[%emt 00:00:02] [%clk 00:07:32]} Rxa5 {[%emt 00:00:22] [%clk 00:06:51]} 37.
Nf8+ {[%emt 00:00:01] [%clk 00:07:41]} Kg8 {[%emt 00:00:01] [%clk 00:06:59]} 38.
Nxe6+ {[%emt 00:00:03] [%clk 00:07:49]} Kh7 {[%clk 00:07:08]} 39. Nf8+ {[%emt
00:01:25] [%clk 00:06:33]} Kg8 {[%emt 00:00:02] [%clk 00:07:17]} 40. h4 {[%emt
00:00:27] [%clk 00:06:16]} h5 {[%emt 00:00:33] [%clk 00:06:53]} 41. Ne6+ {[%emt
00:00:26] [%clk 00:06:01]} Kh7 {[%emt 00:00:02] [%clk 00:07:01]} 42. Ng5+ {[%emt
00:00:01] [%clk 00:06:10]} Kg6 {[%clk 00:07:10]} 43. Rd6+ {[%emt 00:00:02] [%clk
00:06:18]} f6 {[%emt 00:00:01] [%clk 00:07:18]} 44. Ne6 {[%emt 00:00:01] [%clk
00:06:27]} Kh6 {[%emt 00:02:18] [%clk 00:05:11]} 45. Rd7 {[%emt 00:00:28] [%clk
00:06:09]} Re5 {[%emt 00:00:59] [%clk 00:04:22]} 46. Nxg7 {[%emt 00:00:32] [%clk
00:05:47]} Kg6 {[%emt 00:00:19] [%clk 00:04:13]} 47. f4 {[%emt 00:00:26] [%clk
00:05:31]} Rxe3 {[%emt 00:00:40] [%clk 00:03:42]} 48. f5+ {[%emt 00:00:03] [%clk
00:05:39]} Kh6 {[%emt 00:00:01] [%clk 00:03:51]} 49. Nxh5 {[%emt 00:01:03] [%clk
00:04:46]} Re5 {[%emt 00:02:15] [%clk 00:01:46]} 50. g4 {[%emt 00:00:55] [%clk
00:04:01]} Nd5 {[%emt 00:00:12] [%clk 00:01:44]} 51. Kf3 {[%emt 00:00:34] [%clk
00:03:36]} a5 {[%emt 00:00:58] [%clk 00:00:57]} 52. Rd6 {[%emt 00:00:11] [%clk
00:03:34]} Re3+ {[%emt 00:00:57] [%clk 00:00:11]} 1-0

[Site "Europe Echecs"]

[Event "Championnat d'Europe Rapide"]
[Date "2024.12.08"]
[White "Papasimakopoulos, Alexandros"]
[Black "Mamedov, Rauf"]
[WhiteElo "2379"]
[BlackElo "2656"]
[Round "9.24"]
[Result "0-1"]
[TimeControl "900+10"]

1. d4 {[%emt 00:31:28] [%clk 00:15:18]} d6 {[%emt 00:00:03] [%clk 00:15:18]} 2.
Nf3 {[%emt 00:00:02] [%clk 00:15:27]} g6 {[%emt 00:00:01] [%clk 00:15:27]} 3. c4
{[%emt 00:00:02] [%clk 00:15:35]} Bg7 {[%emt 00:00:01] [%clk 00:15:36]} 4. Nc3
{[%emt 00:00:01] [%clk 00:15:44]} Nf6 {[%clk 00:15:45]} 5. Bg5 {[%emt 00:00:01]
[%clk 00:15:52]} h6 {[%emt 00:00:02] [%clk 00:15:54]} 6. Bh4 {[%clk 00:16:01]}
Nc6 {[%emt 00:00:03] [%clk 00:16:01]} 7. d5 {[%emt 00:00:13] [%clk 00:15:58]}
Nb8 {[%emt 00:00:05] [%clk 00:16:06]} 8. h3 {[%emt 00:00:09] [%clk 00:15:59]} e5
{[%emt 00:00:21] [%clk 00:15:56]} 9. dxe6 {[%emt 00:00:17] [%clk 00:15:52]} Bxe6
{[%emt 00:00:01] [%clk 00:16:05]} 10. e3 {[%emt 00:00:04] [%clk 00:15:57]} Nc6
{[%emt 00:00:03] [%clk 00:16:13]} 11. Be2 {[%emt 00:00:08] [%clk 00:15:59]} O-O
{[%emt 00:00:02] [%clk 00:16:20]} 12. O-O {[%emt 00:00:06] [%clk 00:16:03]} Re8
{[%emt 00:00:03] [%clk 00:16:28]} 13. Nd4 {[%emt 00:00:22] [%clk 00:15:51]} Nxd4
{[%emt 00:00:09] [%clk 00:16:30]} 14. exd4 {[%emt 00:00:01] [%clk 00:15:59]} c6
{[%emt 00:00:08] [%clk 00:16:33]} 15. Qd2 {[%emt 00:00:21] [%clk 00:15:47]} Ne4
{[%emt 00:00:58] [%clk 00:15:45]} 16. Bxd8 {[%emt 00:01:58] [%clk 00:13:59]}
Nxd2 {[%emt 00:00:01] [%clk 00:15:53]} 17. Rfd1 {[%emt 00:00:02] [%clk
00:14:08]} Nxc4 {[%emt 00:00:13] [%clk 00:15:50]} 18. Bxc4 {[%emt 00:00:24]
[%clk 00:13:54]} Bxc4 {[%emt 00:00:03] [%clk 00:15:57]} 19. Bh4 {[%emt 00:00:02]
[%clk 00:14:02]} f5 {[%emt 00:00:27] [%clk 00:15:41]} 20. Bg3 {[%emt 00:00:06]
[%clk 00:14:05]} Rad8 {[%emt 00:00:02] [%clk 00:15:48]} 21. Rac1 {[%emt
00:00:30] [%clk 00:13:46]} Bf7 {[%emt 00:00:10] [%clk 00:15:49]} 22. f3 {[%emt
00:00:36] [%clk 00:13:19]} b5 {[%emt 00:00:11] [%clk 00:15:49]} 23. b3 {[%emt
00:00:46] [%clk 00:12:42]} b4 {[%emt 00:00:07] [%clk 00:15:53]} 24. Na4 {[%emt
00:00:08] [%clk 00:12:43]} Re2 {[%emt 00:00:04] [%clk 00:15:59]} 25. Rxc6 {[%emt
00:00:18] [%clk 00:12:36]} Rxa2 {[%emt 00:00:11] [%clk 00:15:58]} 26. d5 {[%emt
00:00:30] [%clk 00:12:16]} Be8 {[%emt 00:00:15] [%clk 00:15:53]} 27. Bxd6 {[%emt
00:01:45] [%clk 00:10:41]} Bxc6 {[%emt 00:00:15] [%clk 00:15:48]} 28. dxc6
{[%emt 00:00:01] [%clk 00:10:50]} Rc2 {[%emt 00:00:54]} 0-1

[Site "Europe Echecs"]